Cogmind - Beta 13 @@@ ROGUE MODE // 2024.04.26 @ 23:39:41 Player: Bross Result: Destroyed by Y-45 Defender with Heavy Assault Rifle Performance ------------- Evolutions (0) 0 Regions Visited (3) 600 Robots Destroyed (26) 130 Value Destroyed (581) 581 Prototype IDs (2) 40 Alien Tech Used (0) 0 Bonus (0) 0 TOTAL SCORE: 1351 Bonus ------- None Cogmind --------- Core Integrity 0/250 Matter 242/300 Energy 265/265 System Corruption 0% Temperature Cool (9) Movement Walking (190) Ox1 Location -8/Recycling Parts ------- > --- POWER (1) -------- Improved Ion Engine > --- PROPULSION (2) --- Aluminum Leg Aluminum Leg > --- UTILITY (2) ------ Improved Heat Sink Medium Storage Unit > --- WEAPON (2) ------- Battle Rifle Battle Rifle > --- INVENTORY (10) --- Light Nuclear Core Aluminum Leg Aluminum Leg Subdweller Monowheel Scrap Engine Scrap Shield Subdweller Laser Subdweller Laser Peak State ------------ > --- POWER ------------ Improved Ion Engine > --- PROPULSION ------- Aluminum Leg Aluminum Leg > --- UTILITY ---------- Improved Heat Sink Medium Storage Unit > --- WEAPON ----------- Battle Rifle Battle Rifle > --- INVENTORY -------- Light Nuclear Core Aluminum Leg Aluminum Leg Subdweller Monowheel Scrap Engine Scrap Shield Subdweller Laser Subdweller Laser [Rating: 15] Favorites ----------- Power Ion Engine Engine Ion Engine Propulsion Aluminum Leg Leg Aluminum Leg Utility Medium Storage Unit Device Improved Heat Sink Storage Medium Storage Unit Weapon Battle Rifle Energy Gun Medium Laser Ballistic Gun Battle Rifle Launcher Subdweller Shrapnel Launcher Build | -11 -10 -10 -8 ------- Run | Yrd Mat Sub Rec Slots Evolved . | . . . . Power . | . . . . Propulsion . | . . . . Utility . | . . . . Weapon . | . . . . Parts Attached 31 | 7 9 12 3 Power 5 | 1 2 1 1 Engine 5 | 1 2 1 1 Core . | . . . . Reactor . | . . . . Propulsion 6 | 2 2 2 . Treads . | . . . . Leg 6 | 2 2 2 . Wheel . | . . . . Hover . | . . . . Flight . | . . . . Utility 6 | 1 2 1 2 Device 4 | . 1 1 2 Storage 2 | 1 1 . . Processor . | . . . . Hackware . | . . . . Protection . | . . . . Artifact . | . . . . Weapon 14 | 3 3 8 . Energy Gun 6 | 2 2 2 . Energy Cannon . | . . . . Ballistic Gun 7 | 1 1 5 . Ballistic Cannon . | . . . . Launcher 1 | . . 1 . Special Weapon . | . . . . Impact Weapon . | . . . . Slashing Weapon . | . . . . Piercing Weapon . | . . . . Special Melee Weapon . | . . . . Unidentified Prototypes . | . . . . Parts Lost 5 | . 3 2 . Power 2 | . 1 1 . Propulsion . | . . . . Utility 1 | . . 1 . Weapon 2 | . 2 . . Highest Loss Streak 3 | . 3 2 . To Critical Strikes . | . . . . Average Slot Usage (%) 97 | . 93 99 99 Engine 13 | . 13 14 14 Leg 28 | . 28 28 28 Device 11 | . 7 13 13 Storage 14 | . 14 14 14 Energy Gun 12 | . 18 17 . Ballistic Gun 15 | . 9 10 28 Naked Turns . | . . . . Heaviest Build 26 | 12 24 26 22 Greatest Support 20 | 20 20 20 20 Greatest Overweight (x) 2 | 2 1 1 1 Average Overweight (x) . | . . . . Largest Inventory Capacity 10 | 8 10 10 10 Average Capacity 9 | 7 9 10 10 Most Carried 10 | 4 9 10 10 Average Carried 8 | 3 6 9 9 Final Capacity 10 | 8 10 10 10 Final Carried 10 | 3 9 10 10 Class Distribution -------------------- 68% | Mutant 31% | Scavenger-Mutant Dominant Class ---------------- Mutant | -10/Materials Scavenger-Mutant | -10/Subcaves Mutant | -8/Recycling Resources | -11 -10 -10 -8 ----------- Run | Yrd Mat Sub Rec Matter Collected 934 | 162 467 127 178 Remotely . | . . . . Salvage Created 845 | . 396 170 279 Parts 63 | . 28 20 15 Haulers Intercepted . | . . . . Recyclers Shooed 1 | . . . 1 Parts Field Recycled . | . . . . Retrieved Matter . | . . . . Parts Self-Destructed 5 | . . 5 . Prevented . | . . . . Kills | -11 -10 -10 -8 ------- Run | Yrd Mat Sub Rec Combat Hostiles Destroyed 21 | . 13 6 2 Guns 18 | . 13 3 2 AOE 3 | . . 3 . Classes Destroyed 6 | . 3 2 1 Recycler 3 | . 1 . 2 Turret 2 | . . 2 . Swarmer 11 | . 9 2 . Grunt 5 | . 4 1 . Sentry 2 | . . . 2 Subdweller 3 | . . 3 . Best Kill Streak 5 | . 4 5 3 Combat Bots Only 4 | . 4 3 1 Max Kills in Single Turn 2 | . 2 2 1 Gunslinging 1 | . 1 . . Exploded 1 | . . 1 . Melee . | . . . . Uniques/NPCs Destroyed . | . . . . Combat | -11 -10 -10 -8 -------- Run | Yrd Mat Sub Rec Hostile Shots Fired 133 | . 83 28 22 Missed 43 | . 25 13 5 Damage Taken 1029 | . 513 266 250 Core 256 | . 122 46 88 Absorbed by Shields . | . . . . Core Remaining (%) 100 | 100 . . . Volleys Fired 83 | . 50 17 16 Largest 2 | . 2 2 2 Hottest 120 | . 90 120 50 Shots Fired 162 | . 99 31 32 Gun 157 | . 99 26 32 Cannon . | . . . . Launcher 5 | . . 5 . Special . | . . . . Kinetic 91 | . 41 18 32 Thermal 71 | . 58 13 . Explosive . | . . . . Electromagnetic . | . . . . Robot Hit Streak 13 | . 6 11 13 Robot Miss Streak 8 | . 8 1 2 Penetration Max . | . . . . Secondary Targets 3 | . 2 1 . Max Gunslinging Chain 1 | . 1 1 . Shots Hit Robots 86 | . 47 15 24 Core Hits 37 | . 20 10 7 Critical Kills . | . . . . Critical Parts Destroyed 1 | . . . 1 Critical Strikes 4 | . 3 . 1 Burn 3 | . 3 . . Destroy 1 | . . . 1 Melee Attacks . | . . . . Impact . | . . . . Slashing . | . . . . Piercing . | . . . . Sneak Attacks . | . . . . Combat Hostiles . | . . . . Follow-up Attacks . | . . . . Damage Inflicted 1534 | . 602 593 339 Guns 1104 | . 597 168 339 Cannons . | . . . . Explosions 425 | . . 425 . Melee . | . . . . Ramming 5 | . 5 . . Kinetic 1015 | . 182 494 339 Thermal 514 | . 415 99 . Explosive . | . . . . Electromagnetic . | . . . . Impact . | . . . . Slashing . | . . . . Piercing . | . . . . Highest Corruption . | . . . . Average Corruption . | . . . . Corruption Purged . | . . . . Corruption Blocked . | . . . . Overload Shots . | . . . . Overflow Damage . | . . . . Projectiles . | . . . . Explosions . | . . . . Melee . | . . . . Knockbacks . | . . . . Impact . | . . . . Kinetic . | . . . . Secondary . | . . . . Self-Inflicted Damage 26 | . . 26 . Shots 1 | . . 1 . Rammed . | . . . . Targets Rammed 5 | . 5 . . Kicked 5 | . 5 . . Crushed . | . . . . Highest Temperature 95 | . 95 . 61 Average Temperature 33 | . 35 . 22 Received Heat Transfer 237 | . 90 57 90 Siege Activations . | . . . . Robots Corrupted . | . . . . Combat Hostiles . | . . . . Parts Fried . | . . . . Impact Corruptions . | . . . . Robots Melted . | . . . . Combat Hostiles . | . . . . Parts Melted 4 | . 2 2 . Heat Transferred 1643 | . 1396 247 . Parts Sabotaged . | . . . . Parts Stolen . | . . . . Parts Stripped . | . . . . Power Chain Reactions . | . . . . Alert | -11 -10 -10 -8 ------- Run | Yrd Mat Sub Rec Peak Influence 296 | . 296 . 188 Initial 168 | . . . 168 Average 123 | . 128 . 133 Maximum Alert Level 1 | . 1 . . Low Security (%) 89 | 100 78 . 100 Level 1 10 | . 21 . . Level 2 . | . . . . Level 3 . | . . . . Level 4 . | . . . . Level 5 . | . . . . High Security . | . . . . Max Security . | . . . . Squads Dispatched 4 | . 4 . . Investigation 1 | . 1 . . Extermination . | . . . . Reinforcement 3 | . 3 . . Assault . | . . . . Garrison . | . . . . Intercept . | . . . . Searches Triggered . | . . . . Construction Impeded . | . . . . Haulers Reinforced . | . . . . Active Scanning Responses . | . . . . Cargo Convoy Interrupts . | . . . . Stealth | -11 -10 -10 -8 --------- Run | Yrd Mat Sub Rec Distress Signals 1 | . 1 . . Communications Jammed . | . . . . Distress Signals . | . . . . Times Spotted 47 | . 17 27 3 Peak Tracking Total 5 | . 4 5 1 Tactical Retreats 2 | . 1 1 . Traps | -11 -10 -10 -8 ------- Run | Yrd Mat Sub Rec Traps Triggered 1 | . 1 . . Indirectly . | . . . . Trap Hack Attempts . | . . . . Triggered . | . . . . Disarmed . | . . . . Reprogrammed . | . . . . Reused . | . . . . Traps Extracted . | . . . . Installed . | . . . . Triggered . | . . . . Machines | -11 -10 -10 -8 ---------- Run | Yrd Mat Sub Rec Machines Disabled 3 | . . 3 . Max in Single Turn 3 | . . 3 . Machines Repaired . | . . . . Machines Dismantled . | . . . . Machines Sabotaged . | . . . . Overloaded Fab Kills . | . . . . Hacking | -11 -10 -10 -8 --------- Run | Yrd Mat Sub Rec Machines Accessed 8 | . 3 . 5 Terminals 3 | . 1 . 2 Fabricators . | . . . . Repair Stations . | . . . . Recycling Units 5 | . 2 . 3 Scanalyzers . | . . . . Garrison Access . | . . . . Total Hacks 13 | . 7 . 6 Successful 9 | . 4 . 5 Failed 4 | . 3 . 1 Catastrophic 1 | . 1 . . Database Lockouts . | . . . . Manual . | . . . . Terminals 6 | . 3 . 3 Fabricators . | . . . . Repair Stations . | . . . . Recycling Units 7 | . 4 . 3 Scanalyzers . | . . . . Garrison Access . | . . . . Terminal Hacks 3 | . 1 . 2 Record 1 | . . . 1 Prototype ID Bank 1 | . . . 1 Locate Traps 1 | . 1 . . Fabricator Hacks . | . . . . Repair Station Hacks . | . . . . Recycling Unit Hacks 6 | . 3 . 3 Report Inventory 5 | . 2 . 3 Retrieve Components 1 | . 1 . . Scanalyzer . | . . . . Garrison Access Hacks . | . . . . Unauthorized Hacks . | . . . . Terminals . | . . . . Fabricators . | . . . . Repair Stations . | . . . . Recycling Units . | . . . . Scanalyzers . | . . . . Garrison Access . | . . . . Data Cores Recovered . | . . . . Used . | . . . . Hacking Detections 6 | . 2 . 4 Full Trace Events . | . . . . Feedback Events . | . . . . Feedback Blocked . | . . . . Robot Schematics Acquired . | . . . . Robots Built . | . . . . Authchips . | . . . . Time . | . . . . Total Robot Build Rating . | . . . . Part Schematics Acquired . | . . . . Parts Built . | . . . . Authchips . | . . . . Time . | . . . . Total Part Build Rating . | . . . . Parts Repaired . | . . . . Time . | . . . . Parts Recycled . | . . . . Recycled Matter . | . . . . Retrieved Matter . | . . . . Retrieved Components 7 | . 7 . . Parts Scanalyzed . | . . . . Part Schematics Acquired . | . . . . Parts Damaged . | . . . . Bothacking | -11 -10 -10 -8 ------------ Run | Yrd Mat Sub Rec Used RIF Installer . | . . . . Robots Hacked . | . . . . Non-combat . | . . . . Combat . | . . . . Robot Hacks Applied . | . . . . Relay Couplers Released . | . . . . Fabnet Peak Effective % . | . . . . Robots Rewired . | . . . . Allies Hacked . | . . . . Hacks Repelled . | . . . . Allies | -11 -10 -10 -8 -------- Run | Yrd Mat Sub Rec Total Allies . | . . . . Largest Group . | . . . . Highest-Rated Group . | . . . . Highest-Rated Ally . | . . . . Total Orders . | . . . . Ally Attacks . | . . . . Total Damage . | . . . . Kills . | . . . . Allies Corrupted . | . . . . Allies Melted . | . . . . Intel | -11 -10 -10 -8 ------- Run | Yrd Mat Sub Rec Robot Analysis Total . | . . . . Derelict Logs Recovered 1 | . . 1 . Drone Launches . | . . . . Drone Recoveries . | . . . . Exploration | -11 -10 -10 -8 ------------- Run | Yrd Mat Sub Rec Turns Passed 1924 | 71 650 645 558 Spaces Moved 1142 | 37 384 366 355 Core 6 | 6 . . . Treads . | . . . . Legs 1136 | 31 384 366 355 Wheels . | . . . . Hover . | . . . . Flight . | . . . . Fastest Speed 50 | 50 120 120 120 Average Speed 135 | 156 120 149 134 Slowest Speed 190 | 190 190 190 190 Overloaded Moves . | . . . . Propulsion Burnouts . | . . . . Robots Hopped . | . . . . Cave-ins Triggered . | . . . . Exploration Rate (%) 30 | 3 61 21 37 Regions Visited 3 Branch Regions 2 Pre-discovered Areas . | . . . . Known Exits Taken . | . . . . Unknown Exits Taken 3 | 1 1 1 . Scrap Searched 1 | . . 1 . Spaces Dug . | . . . . Terrain Destroyed 56 | . . 56 . Melee . | . . . . Projectile . | . . . . AOE 56 | . . 56 . Terrain Rammed . | . . . . Walls Destroyed . | . . . . Machines Disabled . | . . . . Actions | -11 -10 -10 -8 --------- Run | Yrd Mat Sub Rec Total 1360 | 47 472 434 407 Wait 63 | . 17 18 28 Move 1139 | 36 383 365 355 Hop . | . . . . Pick Up 22 | 4 6 11 1 Fast Attach 9 | 5 2 1 1 Attach 5 | 1 3 1 . Detach 1 | . 1 . . Swap 17 | 1 4 10 2 Drop 16 | . 1 11 4 Fire 83 | . 50 17 16 Melee . | . . . . Ram . | . . . . Kick 5 | . 5 . . Crush . | . . . . Escape Stasis . | . . . . Rewire . | . . . . Trap . | . . . . Miscellaneous . | . . . . Route ------- -11/Scrapyard -10/Materials (discovered 4 exits: [*Mat x2] / [*Min] / [*Sub]) -10/Subcaves (discovered 2 exits: Mat / *Rec) -8/Recycling (discovered 1 exit: [*Fac]) History --------- Turn | Location | Event 2 | -11/Scrapyard | Met Revision 17 14 | -11/Scrapyard | Discovered new exit (range 16) 72 | -11/Scrapyard | Entered Materials 177 | -10/Materials | Discovered new exit (range 16) 298 | -10/Materials | Discovered new exit (range 12) 314 | -10/Materials | Build established: Mutant 389 | -10/Materials | Lost 3 parts (1p2w) 543 | -10/Materials | Discovered new exit (range 15) 712 | -10/Materials | Discovered new exit (range 7) 722 | -10/Materials | Entered Subcaves 806 | -10/Subcaves | Ambushed by swarm of Subdwellers 816 | -10/Subcaves | Ambushed by Subdwellers from Twisted Machinery 825 | -10/Subcaves | Core integrity fell below 50% 885 | -10/Subcaves | Shifting Twisted Machinery released Battle Rifle 1103 | -10/Subcaves | Identified exit to Materials 1196 | -10/Subcaves | Build established: Scavenger-Mutant 1304 | -10/Subcaves | Discovered new exit (range 14) 1367 | -10/Subcaves | Entered Recycling 1376 | -8/Recycling | Found Scrap Engine 1488 | -8/Recycling | Core integrity fell below 20% 1601 | -8/Recycling | Build established: Mutant 1652 | -8/Recycling | Discovered new exit (range 16) 1925 | -8/Recycling | Destroyed by Y-45 Defender with Heavy Assault Rifle Last Messages --------------- >>Recycling(Report) Matter reserves: 0 Inventory: Adv. Treads (35%) Hvy. Particle Cannon (45%) Deuterium Engine (53%) 01880_ R-06 Scavenger collects Tractor Beam. 01883_ R-06 Scavenger collects Ion Engine. 01884_ R-06 Scavenger collects Lgt. Armor Plating. 01886_ Y-45 Defender springs to life. 01888_ R-06 Scavenger collects Hvy. Assault Rifle. 01889_ R-06 Scavenger collects Sml. Storage Unit. 01892_ R-06 Scavenger collects Lgt. Treads. 01893_ R-06 Scavenger inserts Com. Wheel into recycling unit. 01896_ R-06 Scavenger inserts Tractor Beam into recycling unit. Map ----- +----------------------------------------------------+ | ?????????# #?????? | | ?????????# """ """ #?????? | | ?????????# "T" """ """ #?????? | | ?????????# """ """ """ ####### | | ???????### + | | ???#### #############+#### | | ???# | | ???# < | | ???# """ """ | | ???# ############## """""""" | | ???# #?# # """"" " | | ???# #?# " # | | ???# #?# T # | | ?### *### " # """ """ | | ?#"" [%!+ # """""""" | | ?#"Y ### # """"" " | | ?#"" %## """" + | | ?### ### """" # | | ???# #?# """" #####+###### | | ???# %#?# ### # | | ???# #?# """" ##" """ # | | ???# #?# """" ##T """ # | | ???# #?# """" ##" """ # | | ???# #?# ### # | | ???# Y### #?# # | | ???# @ ############?###"T"#### | | ???# **#??????????????#"""#??? | | ???# **#???????????????##????? | | ???# ###?????????????????????? | | ???# #???????????????????????? | | ???# #???????????????????????? | | ???# #???????????????????????? | | ???# #???????????????????????? | | ???# ???????????????????????? | | ???# ???????????????????????? | | ???# ???????????????????????? | | ???## ???????????????????????? | | ????#"" ???????????????????????? | | ????#"Y ???????????????????????? | | ???????????????????????????????? | | ???????????????????????????????? | | ???????????????????????????????? | | ???????????????????????????????? | | ???????????????????????????????? | | ???????????????????????????????? | | ???????????????????????????????? | | ???????????????????????????????? | | ???????????????????????????????? | | ???????????????????????????????? | | ???????????????????????????????? | +----------------------------------------------------+ Best States ------------- Heat Dissipation 39 Energy Generation 12 Energy Capacity 265 Matter Stores 300 Matter Capacity 300 Sight Range 21 Terrain Scan Density 10 Evasion (%) 55 Item Schematics ----------------- None Robot Schematics ------------------ None Fabricated ------------ Nothing Alien Tech Used ----------------- None Achievements -------------- None Challenges ------------ None Game ------ Seed ConcussiveGunKinecellerator Manual? 0 Play Time 00:27:23 Cumulative 30.5 hours Start 2024.04.26 @ 23:11:58 End 2024.04.26 @ 23:39:41 Sessions 1 Manual Loads 0 Difficulty Rogue Special Mode None Game No. 19 Rogue 19 Adventurer 0 Explorer 0 Win Type - Total 0 Types 0/0/0/0/0/0/0/0/0 Lore% 12 Gallery% 25 Achievement% 18 Wizard Run 0 Options --------- Layout 1 ASCII 0 Keyboard 0 Movement Numpad Keybinds 0 Fullscreen 1 Font 48/Smallcaps Map View 50x35 Zoom Use 0% Tactical HUD 1 Map Filters NONE Filters NONE Steam 1 RUN: aa5cde36-599c-413d-ae35-4a45fdd39375